fUST/lending_fUST_20250703
["ID","MTS","AMOUNT","RATE_DAILY","PERIOD"]
[369097195,1751476239194,-151.0,0.00017924,2]
[369097196,1751476239203,-500.0,0.00017924,2]
[369097197,1751476239212,-500.0,0.00017924,2]
[369097198,1751476239221,-151.0,0.00017924,2]
[369097199,1751476239230,-500.0,0.00017924,2]
[369097200,1751476239239,-500.0,0.00017924,2]
[369097201,1751476239248,-151.0,0.00017924,2]
[369097202,1751476239257,-500.0,0.00017924,2]
[369097203,1751476239267,-500.0,0.00017924,2]
[369097204,1751476239276,-151.0,0.00017924,2]
[369097205,1751476239286,-500.0,0.00017924,2]
[369097206,1751476239295,-500.0,0.00017924,2]
[369097207,1751476239305,-151.0,0.00017924,2]
[369097208,1751476239314,-500.0,0.00017924,2]
[369097209,1751476239323,-500.0,0.00017924,2]
[369097210,1751476239331,-500.0,0.00017924,2]
[369097211,1751476239341,-500.0,0.00017924,2]
[369097212,1751476239350,-500.0,0.00017924,2]
[369097213,1751476239359,-500.0,0.00017924,2]
[369097214,1751476239368,-500.0,0.00017924,2]
[369097215,1751476239378,-500.0,0.00017924,2]
[369097216,1751476239388,-500.0,0.00017924,2]
[369097217,1751476239397,-500.0,0.00017924,2]
[369097218,1751476239407,-500.0,0.00017924,2]
[369097219,1751476239417,-500.0,0.00017924,2]
[369097220,1751476239426,-151.0,0.00017924,2]
[369097221,1751476239435,-500.0,0.00017924,2]
[369097222,1751476239444,-151.0,0.00017924,2]
[369097223,1751476239454,-300.7657168,0.00017924,2]
[369097224,1751476239463,-25000.0,0.00017924,2]
[369097225,1751476239473,-9588.62346067,0.00017924,2]
[369097226,1751476239483,-500.0,0.00017924,2]
[369097227,1751476239492,-650.0,0.00017958,2]
[369097228,1751476239501,-716.195754,0.00017979,2]
[369097229,1751476239511,-742.6949969,0.00018034,2]
[369097230,1751476239520,-770.17471178,0.00018089,2]
[369097231,1751476239530,-798.67117612,0.00018144,2]
[369097232,1751476239539,-650.0,0.00018172,2]
[369097233,1751476239549,-500.0,0.00018198,2]
[369097234,1751476239559,-828.22200964,0.00018199,2]
[369097235,1751476239577,-858.86622399,0.00018254,2]
[369097236,1751476239590,-168.0,0.0001827,2]
[369097237,1751476239600,-168.0,0.00018293,2]
[369097238,1751476239610,-890.64427428,0.00018309,2]
[369097239,1751476239619,-923.59811243,0.00018364,2]
[369097240,1751476239629,-957.77124259,0.00018419,2]
[369097241,1751476239639,-168.0,0.00018426,2]
[369097242,1751476239649,-5000.0,0.00018472,2]
[369097243,1751476239661,-329.55219221,0.00018472,2]
[369097244,1751476239691,-24670.44780779,0.00018472,2]
[369097245,1751476239709,-993.20877856,0.00018474,2]
[369097246,1751476239718,-1029.95750337,0.00018529,2]
[369097247,1751476239728,-168.0,0.00018582,2]
[369097248,1751476239738,-1068.065931,0.00018584,2]
[369097249,1751476239749,-2845.86825522,0.00018595,2]
[369097250,1751476239959,-241.96746128,0.00018617,2]
[369097251,1751476239970,-1107.58437044,0.00018639,2]
[369097252,1751476239979,-168.0,0.00018693,2]
[369097253,1751476239990,-1148.56499215,0.00018694,2]
[369097254,1751476239999,-128511.71038723,0.0001871,2]
[369097255,1751476240012,-5333.37075141,0.0001871,2]
[369097256,1751476240023,-10937.4068957,0.0001871,2]
[369097510,1751476244715,-343.15071237,0.00017298,2]
[369097512,1751476244724,-232.70295963,0.00017298,2]
[369097515,1751476244925,-1.88780508,0.00017298,2]
[369097516,1751476244935,-10718.5772306,0.0001871,2]
[369097517,1751476245031,-610.92478753,0.0001871,2]
[369097518,1751476245043,-1000.0,0.0001871,2]
[369097536,1751476331647,299.457684,0.00013699,2]
[369097538,1751476402262,213.90888375,0.00026,120]
[369097539,1751476410729,200.0,0.00026832,120]
[369097540,1751476420112,500.0,0.00027397,120]
[369097541,1751476439079,682.0,0.00027397,120]
[369097542,1751476445125,1000.0,0.00027397,120]
[369097543,1751476445240,524.6887252,0.00026,120]
[369097544,1751476466659,1000.0,0.00027397,120]
[369097547,1751476574207,1341.0,0.00027397,120]
[369097549,1751476750815,998.045554,0.00027397,120]
[369097550,1751476751773,524.6887252,0.00026,120]
[369097551,1751476830785,200.0,0.0002705,120]
[369097552,1751477031809,213.90888375,0.00026,120]
[369097553,1751477058832,524.6887252,0.00026,120]
[369097558,1751477190706,200.0,0.00026342,120]
[369097559,1751477225142,-165.62892951,0.00016697,2]
[369097560,1751477225163,-221.88799788,0.00016777,2]
[369097561,1751477225184,-369.8133298,0.00016779,2]
[369097562,1751477225204,-300.0,0.00016796,2]
[369097563,1751477225225,-1200.0,0.00016797,2]
[369097564,1751477225246,-1200.0,0.00016797,2]
[369097565,1751477225266,-500.0,0.00016797,2]
[369097566,1751477225287,-500.0,0.00016797,2]
[369097567,1751477225308,-500.0,0.00016797,2]
[369097568,1751477225329,-500.0,0.00016797,2]
[369097569,1751477225349,-605.9827677,0.00016797,2]
[369097570,1751477225370,-513.08541028,0.00016797,2]
[369097571,1751477225390,-244.37662595,0.00016797,2]
[369097572,1751477225411,-619.71461574,0.00016797,2]
[369097573,1751477225433,-500.0,0.00016797,2]
[369097574,1751477225454,-500.0,0.00016797,2]
[369097575,1751477225476,-500.0,0.00016797,2]
[369097576,1751477225497,-546.83909518,0.00016797,2]
[369097577,1751477225519,-500.0,0.00016797,2]
[369097578,1751477225541,-500.0,0.00016797,2]
[369097579,1751477225564,-500.0,0.00016797,2]
[369097580,1751477225590,-500.0,0.00016797,2]
[369097581,1751477225620,-500.0,0.00016797,2]
[369097582,1751477225644,-500.0,0.00016797,2]
[369097583,1751477225667,-297.78747567,0.00016797,2]
[369097598,1751477365462,524.6887252,0.00026,120]
[369097602,1751477370769,200.0,0.00026749,120]
[369097657,1751477431793,-300.0,0.00016799,2]
[369097659,1751477431804,-1011.0,0.00016799,2]
[369097661,1751477431814,-500.0,0.000168,2]
[369097663,1751477431823,-500.0,0.000168,2]
[369097665,1751477431833,-500.0,0.000168,2]
[369097667,1751477431842,-500.0,0.000168,2]
[369097669,1751477431852,-500.0,0.000168,2]
[369097671,1751477431861,-500.0,0.000168,2]
[369097673,1751477431870,-500.0,0.000168,2]
[369097675,1751477431880,-261.97146158,0.000168,2]
[369097678,1751477431889,-500.0,0.000168,2]
[369097681,1751477431898,-500.0,0.000168,2]
[369097684,1751477431908,-558.62473093,0.000168,2]
[369097687,1751477431917,-500.0,0.000168,2]
[369097690,1751477431931,-433.29981292,0.000168,2]
[369097693,1751477431942,-500.0,0.000168,2]
[369097696,1751477431952,-10044.06491404,0.000168,2]
[369097699,1751477431963,-24900.0,0.00016801,2]
[369097702,1751477431972,-292.82154758,0.0001697,2]
[369097705,1751477431982,-281038.28671042,0.0001698,2]
[369097708,1751477431992,-1971.07459946,0.00017192,2]
[369097712,1751477432004,-160.0,0.00017292,2]
[369097715,1751477432014,-7033.98535113,0.00017358,2]
[369097718,1751477432023,-151.0,0.000175,2]
[369097721,1751477432033,-151.0,0.000178,2]
[369097722,1751477432043,-608.61848597,0.00017837,2]
[369097725,1751477432055,-15849.04750532,0.000179,2]
[369097727,1751477432065,-500.0,0.00017923,2]
[369097729,1751477432075,-310.1291145,0.00017923,2]
[369097731,1751477432084,-608.81438543,0.00017923,2]
[369097733,1751477432095,-500.0,0.00017923,2]
[369097735,1751477432105,-690.642,0.00017924,2]
[369097737,1751477432115,-5000.0,0.00017924,2]
[369097739,1751477432125,-207.4,0.00017924,2]
[369097741,1751477432134,-500.0,0.00017924,2]
[369097742,1751477432144,-500.0,0.00017924,2]
[369097745,1751477432153,-500.0,0.00017924,2]
[369097747,1751477432163,-500.0,0.00017924,2]
[369097748,1751477432172,-500.0,0.00017924,2]
[369097751,1751477432183,-500.0,0.00017924,2]
[369097753,1751477432193,-500.0,0.00017924,2]
[369097755,1751477432202,-500.0,0.00017924,2]
[369097757,1751477432212,-500.0,0.00017924,2]
[369097759,1751477432221,-500.0,0.00017924,2]
[369097761,1751477432231,-500.0,0.00017924,2]
[369097763,1751477432240,-500.0,0.00017924,2]
[369097765,1751477432251,-500.0,0.00017924,2]
[369097767,1751477432260,-500.0,0.00017924,2]
[369097769,1751477432270,-500.0,0.00017924,2]
[369097771,1751477432279,-500.0,0.00017924,2]
[369097772,1751477432289,-500.0,0.00017924,2]
[369097775,1751477432299,-500.0,0.00017924,2]
[369097777,1751477432309,-500.0,0.00017924,2]
[369097778,1751477432318,-500.0,0.00017924,2]
[369097780,1751477432328,-500.0,0.00017924,2]
[369097783,1751477432338,-500.0,0.00017924,2]
[369097785,1751477432348,-500.0,0.00017924,2]
[369097787,1751477432358,-500.0,0.00017924,2]
[369097789,1751477432367,-500.0,0.00017924,2]
[369097791,1751477432377,-500.0,0.00017924,2]
[369097793,1751477432387,-500.0,0.00017924,2]
[369097795,1751477432396,-500.0,0.00017924,2]
[369097797,1751477432406,-500.0,0.00017924,2]
[369097799,1751477432415,-500.0,0.00017924,2]
[369097801,1751477432425,-25000.0,0.00017924,2]
[369097803,1751477432435,-168.0,0.00017942,2]
[369097805,1751477432444,-716.195754,0.00017979,2]
[369097807,1751477432454,-151.0,0.00018,2]
[369097809,1751477432463,-742.6949969,0.00018034,2]
[369097811,1751477432473,-904.5454278,0.00018082,2]
[369097813,1751477432482,-3111.47420806,0.00018089,2]
[369097815,1751477432492,-15624.16219617,0.00018089,2]
[369097817,1751477432503,-770.17471178,0.00018089,2]
[369097819,1751477432512,-798.67117612,0.00018144,2]
[369097821,1751477432523,-15849.04750511,0.00018176,2]
[369097823,1751477432533,-828.22200964,0.00018199,2]
[369097825,1751477432542,-151.0,0.000182,2]
[369097828,1751477432554,-176.0,0.00018253,2]
[369097830,1751477432564,-858.86622399,0.00018254,2]
[369097832,1751477432574,-176.0,0.00018258,2]
[369097834,1751477432583,-429.98554735,0.00018271,2]
[369097836,1751477432593,-890.64427428,0.00018309,2]
[369097838,1751477432603,-176.0,0.00018332,2]
[369097840,1751477432612,-320.0,0.0001835,2]
[369097842,1751477432622,-420.0,0.00018352,2]
[369097844,1751477432632,-176.0,0.00018362,2]
[369097846,1751477432642,-923.59811243,0.00018364,2]
[369097848,1751477432652,-236.25,0.00018376,3]
[369097850,1751477432662,-472.5,0.00018389,3]
[369097852,1751477432672,-944.99,0.00018399,3]
[369097854,1751477432682,-1889.98,0.00018409,3]
[369097856,1751477432692,-957.77124259,0.00018419,2]
[369097858,1751477432702,-708.76,0.00018442,3]
[369097859,1751477432712,-15849.04750511,0.00018452,2]
[369097860,1751477432721,-5000.0,0.00018472,2]
[369097861,1751477432731,-25000.0,0.00018472,2]
[369097862,1751477432741,-993.20877856,0.00018474,2]
[369097863,1751477432751,-1744.68676,0.000185,2]
[369097864,1751477432761,-151.0,0.000185,2]
[369097865,1751477432770,-2845.86825522,0.00018522,2]
[369097866,1751477432779,-1029.95750337,0.00018529,2]
[369097867,1751477432789,-176.0,0.00018568,2]
[369097868,1751477432798,-1068.065931,0.00018584,2]
[369097869,1751477432808,-538.87393842,0.00018615,5]
[369097870,1751477432817,-176.0,0.00018619,2]
[369097871,1751477432826,-1107.58437044,0.00018639,2]
[369097872,1751477432835,-1148.56499215,0.00018694,2]
[369097873,1751477432845,-151.0,0.000187,2]
[369097874,1751477432854,-151.0,0.000187,2]
[369097875,1751477432864,-81685.8377342,0.0001871,2]
[369097876,1751477432873,-151.0,0.0001871,2]
[369097877,1751477432883,-168.0,0.00018727,2]
[369097878,1751477432891,-15849.04750511,0.00018728,2]
[369097879,1751477432901,-161.675999,0.00018728,2]
[369097880,1751477432910,-151.0,0.00018728,2]
[369097881,1751477432919,-151.0,0.00018728,2]
[369097882,1751477432928,-151.0,0.00018728,2]
[369097883,1751477432937,-1191.06189686,0.00018749,2]
[369097884,1751477432946,-155.84540809,0.00018789,2]
[369097885,1751477432956,-151.0,0.000188,2]
[369097887,1751477432965,-151.0,0.000188,2]
[369097888,1751477432975,-168.0,0.00018812,2]
[369097889,1751477432984,-168.0,0.00018818,2]
[369097890,1751477432994,-447.7,0.00018854,2]
[369097892,1751477433006,-160.0,0.00018855,2]
[369097894,1751477433016,-266584.6412069,0.00018856,2]
[369097896,1751477433025,-151.0,0.00018856,2]
[369097898,1751477433034,-151.0,0.00018856,2]
[369097900,1751477433044,-151.0,0.00018856,2]
[369097902,1751477433056,-168.0,0.00018862,2]
[369097904,1751477433067,-500.59761066,0.00018873,2]
[369097906,1751477433077,-599.63711172,0.00018873,2]
[369097908,1751477433087,-274.95260594,0.00018873,2]
[369097911,1751477433098,-500.0,0.00018873,2]
[369097912,1751477433108,-396.67202616,0.00018873,2]
[369097915,1751477433119,-151.0,0.00018889,2]
[369097917,1751477433129,-151.0,0.00018889,2]
[369097919,1751477433141,-259.1788,0.00018889,2]
[369097921,1751477433150,-259.1788,0.00018889,2]
[369097923,1751477433160,-151.0,0.000189,2]
[369097925,1751477433169,-151.0,0.000189,2]
[369097927,1751477433179,-151.0,0.000189,2]
[369097929,1751477433188,-1136.23833714,0.00018906,2]
[369097931,1751477433198,-667.637124,0.00018907,2]
[369097933,1751477433208,-151.0,0.00018934,2]
[369097935,1751477433218,-152.463533,0.00018934,2]
[369097937,1751477433227,-151.0,0.00018934,2]
[369097939,1751477433236,-151.0,0.00018955,2]
[369097941,1751477433247,-151.0,0.00018955,2]
[369097943,1751477433257,-151.0,0.00018955,2]
[369097945,1751477433267,-159.243849,0.00018955,2]
[369097947,1751477433277,-151.0,0.00018966,2]
[369097949,1751477433287,-151.0,0.00018967,2]
[369097951,1751477433296,-151.0,0.00018967,2]
[369097953,1751477433306,-151.0,0.00018967,2]
[369097955,1751477433316,-151.0,0.00018967,2]
[369097957,1751477433325,-551.923849,0.00018967,2]
[369097959,1751477433335,-551.923849,0.00018967,2]
[369097961,1751477433344,-186.127068,0.00018967,2]
[369097963,1751477433353,-259.1788,0.00018967,2]
[369097965,1751477433364,-259.1788,0.00018967,2]
[369097967,1751477433374,-151.0,0.00018972,2]
[369097969,1751477433384,-151.0,0.00018972,2]
[369097971,1751477433393,-151.0,0.00018972,2]
[369097973,1751477433403,-279.852506,0.00018982,2]
[369098000,1751477433651,-151.0,0.00018982,2]
[369098002,1751477433662,-1077.020082,0.00018982,2]
[369098004,1751477433673,-1077.020082,0.00018982,2]
[369098006,1751477433683,-97033.53587659,0.00018986,2]
[369098008,1751477433693,-1000.0,0.00019,19]
[369098010,1751477433703,-151.0,0.00019,2]
[369098012,1751477433712,-151.0,0.00019,2]
[369098014,1751477433722,-151.0,0.00019,2]
[369098016,1751477433731,-1000.0,0.00019,2]
[369098018,1751477433741,-9088.43575008,0.00019,2]
[369098020,1751477433752,-15849.04750511,0.00019003,2]
[369098022,1751477433761,-13800.114,0.00019018,2]
[369098024,1751477433772,-5000.0,0.0001902,2]
[369098026,1751477433781,-25000.0,0.0001902,2]
[369098028,1751477433791,-151.0,0.00019066,2]
[369098030,1751477433800,-151.0,0.00019066,2]
[369098032,1751477433810,-151.0,0.00019066,2]
[369098034,1751477433819,-151.0,0.00019066,2]
[369098036,1751477433829,-151.0,0.00019066,2]
[369098038,1751477433838,-336.861168,0.00019066,2]
[369098040,1751477433848,-151.0,0.00019066,2]
[369098042,1751477433857,-151.0,0.00019066,2]
[369098043,1751477433867,-551.923849,0.00019066,2]
[369098046,1751477433876,-151.0,0.00019066,2]
[369098048,1751477433886,-551.923849,0.00019066,2]
[369098049,1751477433895,-1077.020082,0.00019066,2]
[369098052,1751477433906,-1077.020082,0.00019066,2]
[369098054,1751477433915,-151.0,0.00019066,2]
[369098056,1751477433925,-151.0,0.00019066,2]
[369098058,1751477433935,-151.0,0.00019066,2]
[369098060,1751477433944,-495.634144,0.00019066,2]
[369098062,1751477433954,-495.634144,0.00019066,2]
[369098064,1751477433963,-151.0,0.00019066,2]
[369098066,1751477433974,-151.0,0.00019066,2]
[369098068,1751477433983,-151.0,0.00019066,2]
[369098070,1751477433993,-151.0,0.00019066,2]
[369098072,1751477434004,-151.0,0.00019066,2]
[369098074,1751477434014,-151.0,0.00019066,2]
[369098076,1751477434023,-421.366107,0.00019066,2]
[369098078,1751477434033,-421.366107,0.00019066,2]
[369098080,1751477434043,-151.0,0.00019066,2]
[369098082,1751477434055,-151.0,0.00019066,2]
[369098084,1751477434065,-151.0,0.00019066,2]
[369098086,1751477434075,-151.0,0.00019066,2]
[369098088,1751477434084,-151.0,0.00019066,2]
[369098090,1751477434095,-151.0,0.00019066,2]
[369098092,1751477434104,-279.838848,0.00019066,2]
[369098093,1751477434114,-151.0,0.00019066,2]
[369098095,1751477434124,-259.1788,0.00019066,2]
[369098097,1751477434134,-533.017732,0.00019066,2]
[369098100,1751477434145,-259.1788,0.00019066,2]
[369098102,1751477434155,-533.017732,0.00019066,2]
[369098103,1751477434164,-151.0,0.00019066,2]
[369098106,1751477434174,-151.0,0.00019067,2]
[369098108,1751477434184,-151.0,0.00019067,2]
[369098110,1751477434193,-151.0,0.00019067,2]
[369098112,1751477434203,-151.0,0.00019067,2]
[369098113,1751477434213,-151.0,0.00019067,2]
[369098115,1751477434223,-151.0,0.00019067,2]
[369098117,1751477434233,-151.0,0.00019067,2]
[369098119,1751477434243,-169.10287905,0.00019078,2]
[369098121,1751477434254,-151.0,0.000191,2]
[369098123,1751477434263,-151.0,0.000191,2]
[369098125,1751477434272,-4798.71315359,0.00019136,2]
[369098127,1751477434282,-151.0,0.00019141,2]
[369098129,1751477434291,-151.0,0.00019141,2]
[369098131,1751477434301,-151.0,0.00019141,2]
[369098133,1751477434310,-151.0,0.00019163,2]
[369098135,1751477434319,-151.0,0.00019163,2]
[369098137,1751477434328,-151.0,0.00019163,2]
[369098139,1751477434338,-151.0,0.00019163,2]
[369098141,1751477434347,-151.0,0.00019163,2]
[369098143,1751477434357,-151.0,0.00019163,2]
[369098145,1751477434366,-495.634144,0.00019163,2]
[369098147,1751477434376,-495.634144,0.00019163,2]
[369098149,1751477434386,-151.0,0.00019163,2]
[369098151,1751477434395,-151.0,0.00019163,2]
[369098153,1751477434404,-421.366107,0.00019163,2]
[369098155,1751477434415,-421.366107,0.00019163,2]
[369098157,1751477434425,-654.0,0.00019166,2]
[369098159,1751477434435,-2151.0,0.00019166,2]
[369098161,1751477434445,-966.0,0.00019166,2]
[369098163,1751477434454,-151.0,0.00019166,2]
[369098165,1751477434463,-246.597111,0.00019166,2]
[369098167,1751477434473,-246.597111,0.00019166,2]
[369098169,1751477434482,-151.0,0.00019167,2]
[369098171,1751477434491,-151.0,0.00019167,2]
[369098173,1751477434502,-151.0,0.00019167,2]
[369098175,1751477434511,-151.0,0.00019167,2]
[369098178,1751477434521,-151.0,0.00019167,2]
[369098180,1751477434531,-151.0,0.00019167,2]
[369098181,1751477434540,-151.0,0.00019167,2]
[369098183,1751477434549,-151.0,0.00019167,2]
[369098185,1751477434559,-232.462172,0.00019167,2]
[369098187,1751477434568,-232.462172,0.00019167,2]
[369098189,1751477434578,-151.0,0.00019167,2]
[369098191,1751477434587,-151.0,0.00019167,2]
[369098193,1751477434598,-151.0,0.00019167,2]
[369098195,1751477434607,-151.0,0.00019167,2]
[369098197,1751477434618,-246.597111,0.00019167,2]
[369098199,1751477434627,-246.597111,0.00019167,2]
[369098201,1751477434636,-151.0,0.00019167,2]
[369098203,1751477434647,-273.782468,0.00019167,2]
[369098205,1751477434656,-151.0,0.00019167,2]
[369098207,1751477434666,-151.0,0.00019167,2]
[369098209,1751477434676,-151.0,0.00019167,2]
[369098211,1751477434686,-151.0,0.00019167,2]
[369098213,1751477434695,-151.0,0.00019167,2]
[369098215,1751477434705,-336.861168,0.00019167,2]
[369098217,1751477434715,-151.0,0.00019167,2]
[369098219,1751477434724,-151.0,0.00019167,2]
[369098221,1751477434733,-151.0,0.00019167,2]
[369098223,1751477434743,-228.513247,0.00019167,2]
[369098224,1751477434753,-500.0,0.00019173,2]
[369098225,1751477434763,-501.68179861,0.00019173,2]
[369098227,1751477434772,-500.0,0.00019173,2]
[369098229,1751477434782,-441.16495049,0.00019173,2]
[369098230,1751477434791,-500.0,0.00019173,2]
[369098232,1751477434801,-500.0,0.00019173,2]
[369098234,1751477434811,-500.0,0.00019173,2]
[369098236,1751477434821,-500.0,0.00019173,2]
[369098238,1751477434830,-507.15952276,0.00019173,2]
[369098240,1751477434840,-500.0,0.00019173,2]
[369098242,1751477434849,-222.36350393,0.00019173,2]
[369098244,1751477434859,-500.0,0.00019173,2]
[369098246,1751477434869,-500.0,0.00019173,2]
[369098248,1751477434878,-500.0,0.00019173,2]
[369098250,1751477434887,-500.0,0.00019173,2]
[369098252,1751477434896,-500.0,0.00019173,2]
[369098254,1751477434906,-500.0,0.00019173,2]
[369098256,1751477434916,-500.0,0.00019173,2]
[369098257,1751477434926,-330.76173713,0.00019173,2]
[369098258,1751477434935,-500.0,0.00019173,2]
[369098259,1751477434945,-500.0,0.00019173,2]
[369098260,1751477434955,-151.0,0.00019173,2]
[369098261,1751477434965,-198.648818,0.00019173,2]
[369098263,1751477434974,-151.0,0.00019173,2]
[369098265,1751477434984,-151.0,0.00019173,2]
[369098267,1751477434994,-259.1788,0.00019173,2]
[369098269,1751477435006,-533.017732,0.00019173,2]
[369098271,1751477435016,-259.1788,0.00019173,2]
[369098273,1751477435027,-533.017732,0.00019173,2]
[369098275,1751477435037,-151.0,0.00019173,2]
[369098277,1751477435046,-295.95,0.00019177,2]
[369098280,1751477435058,-200.0,0.00019177,2]
[369098281,1751477435067,-160.0,0.00019177,2]
[369098284,1751477435077,-51561.18,0.00019177,2]
[369098286,1751477435087,-151.0,0.00019178,2]
[369098288,1751477435096,-151.0,0.00019178,2]
[369098290,1751477435108,-151.0,0.00019178,2]
[369098292,1751477435118,-151.0,0.00019178,2]
[369098293,1751477435128,-151.0,0.00019178,2]
[369098295,1751477435138,-151.0,0.00019178,2]
[369098296,1751477435148,-151.0,0.00019178,2]
[369098297,1751477435158,-151.0,0.00019178,2]
[369098298,1751477435167,-168.562866,0.00019178,2]
[369098299,1751477435176,-168.562866,0.00019178,2]
[369098300,1751477435186,-196.182044,0.00019178,2]
[369098302,1751477435195,-196.182044,0.00019178,2]
[369098303,1751477435204,-196.182044,0.00019178,2]
[369098305,1751477435214,-196.182044,0.00019178,2]
[369098306,1751477435224,-196.182044,0.00019178,2]
[369098307,1751477435233,-196.182044,0.00019178,2]
[369098308,1751477435243,-196.182044,0.00019178,2]
[369098309,1751477435254,-196.182044,0.00019178,2]
[369098310,1751477435265,-151.0,0.00019178,2]
[369098311,1751477435274,-151.0,0.00019178,2]
[369098312,1751477435284,-151.0,0.00019178,2]
[369098313,1751477435293,-151.0,0.00019178,2]
[369098314,1751477435303,-151.0,0.00019178,2]
[369098315,1751477435313,-151.0,0.00019178,2]
[369098316,1751477435322,-151.0,0.00019178,2]
[369098317,1751477435332,-151.0,0.00019178,2]
[369098318,1751477435342,-151.0,0.00019178,2]
[369098319,1751477435353,-154.359201,0.00019178,2]
[369098320,1751477435362,-151.0,0.00019178,2]
[369098321,1751477435372,-152.69692,0.00019178,2]
[369098322,1751477435382,-151.0,0.00019178,2]
[369098323,1751477435391,-151.0,0.00019178,2]
[369098324,1751477435400,-151.0,0.00019178,2]
[369098325,1751477435409,-151.0,0.00019178,2]
[369098326,1751477435419,-151.0,0.00019178,2]
[369098327,1751477435428,-151.0,0.00019178,2]
[369098328,1751477435437,-151.0,0.00019178,2]
[369098329,1751477435447,-151.0,0.00019178,2]
[369098330,1751477435456,-151.0,0.00019178,2]
[369098331,1751477435468,-151.0,0.00019178,2]
[369098332,1751477435477,-151.0,0.00019178,2]
[369098333,1751477435486,-151.0,0.00019178,2]
[369098334,1751477435496,-151.0,0.00019178,2]
[369098335,1751477435506,-151.0,0.00019178,2]
[369098336,1751477435516,-151.0,0.00019178,2]
[369098337,1751477435525,-151.0,0.00019178,2]
[369098338,1751477435534,-151.0,0.00019178,2]
[369098339,1751477435544,-151.0,0.00019178,2]
[369098340,1751477435553,-151.0,0.00019178,2]
[369098341,1751477435562,-151.0,0.00019178,2]
[369098342,1751477435571,-151.0,0.00019178,2]
[369098343,1751477435581,-151.0,0.00019178,2]
[369098344,1751477435591,-151.0,0.00019178,2]
[369098345,1751477435601,-151.0,0.00019178,2]
[369098346,1751477435610,-151.0,0.00019178,2]
[369098347,1751477435620,-151.0,0.00019178,2]
[369098348,1751477435630,-151.0,0.00019178,2]
[369098349,1751477435639,-215.33716,0.00019178,2]
[369098350,1751477435649,-151.0,0.00019178,2]
[369098351,1751477435659,-151.0,0.00019178,2]
[369098352,1751477435669,-151.0,0.00019178,2]
[369098353,1751477435679,-151.0,0.00019178,2]
[369098354,1751477435689,-151.297339,0.00019178,2]
[369098355,1751477435698,-360.971418,0.00019178,2]
[369098356,1751477435708,-360.971418,0.00019178,2]
[369098357,1751477435718,-360.971418,0.00019178,2]
[369098358,1751477435728,-232.462172,0.00019178,2]
[369098359,1751477435738,-232.462172,0.00019178,2]
[369098360,1751477435751,-232.462172,0.00019178,2]
[369098361,1751477435761,-232.462172,0.00019178,2]
[369098362,1751477435771,-232.462172,0.00019178,2]
[369098363,1751477435780,-232.462172,0.00019178,2]
[369098364,1751477435789,-232.462172,0.00019178,2]
[369098365,1751477435799,-151.0,0.00019178,2]
[369098366,1751477435809,-232.462172,0.00019178,2]
[369098367,1751477435818,-151.0,0.00019178,2]
[369098368,1751477435827,-232.462172,0.00019178,2]
[369098369,1751477435836,-232.462172,0.00019178,2]